Cogmind - Beta 14 *** ADVENTURER MODE // 2024.09.16 @ 16:42:53 Player: LegoMDS Result: Destroyed by 3K-GIW(R) with Subdweller Beam Cannon Performance ------------- Evolutions (0) 0 Regions Visited (3) 600 Robots Destroyed (16) 80 Value Destroyed (403) 403 Prototype IDs (1) 20 Alien Tech Used (0) 0 Bonus (40) 40 TOTAL SCORE: 1143 Bonus ------- Follower Combat Kills 50 Friendly Fire -10 Cogmind --------- Core Integrity 0/250 Matter 238/300 Energy 36/240 System Corruption 0% Temperature Cool (9) Movement Rolling (110) Location -10/Subcaves Parts ------- > --- POWER (1+3) ------ Nuclear Core > --- PROPULSION (2) --- Subdweller Monowheel > --- UTILITY (2) ------ Structural Scanner Power Bank > --- WEAPON (2) ------- (None) > --- INVENTORY (5) ---- Cryofiber Web Cryofiber Web Improved Heat Sink Advanced Targeting Computer Peak State ------------ > --- POWER ------------ Nuclear Core > --- PROPULSION ------- Subdweller Monowheel > --- UTILITY ---------- Structural Scanner Power Bank > --- WEAPON ----------- (None) > --- INVENTORY -------- Cryofiber Web Cryofiber Web Improved Heat Sink Advanced Targeting Computer [Rating: 16] Favorites ----------- Power Light Nuclear Core Engine Ion Engine Power Core Light Nuclear Core Propulsion Flight Unit Leg Aluminum Leg Wheel Subdweller Monowheel Flight Unit Flight Unit Utility Structural Scanner Device Structural Scanner Weapon Light Assault Rifle Energy Gun Subdweller Laser Ballistic Gun Light Assault Rifle Build | -11 -10 -10 -10 ------- Run | Yrd Mat Min Sub Slots Evolved . | . . . . Power . | . . . . Propulsion . | . . . . Utility . | . . . . Weapon . | . . . . Parts Attached 27 | 5 9 7 6 Power 9 | 1 4 3 1 Engine 5 | 1 3 1 . Core 4 | . 1 2 1 Reactor . | . . . . Propulsion 7 | 2 2 1 2 Treads . | . . . . Leg 2 | 2 . . . Wheel 1 | . . . 1 Hover . | . . . . Flight 4 | . 2 1 1 Utility 5 | . 3 1 1 Device 5 | . 3 1 1 Storage . | . . . . Processor . | . . . . Hackware . | . . . . Protection . | . . . . Artifact . | . . . . Weapon 6 | 2 . 2 2 Energy Gun 1 | . . . 1 Energy Cannon . | . . . . Ballistic Gun 5 | 2 . 2 1 Ballistic Cannon . | . . . . Launcher . | . . . . Special Weapon . | . . . . Impact Weapon . | . . . . Slashing Weapon . | . . . . Piercing Weapon . | . . . . Special Melee Weapon . | . . . . Unidentified Prototypes 1 | . . . 1 Parts Lost 6 | . . 1 5 Power 1 | . . 1 . Propulsion 3 | . . . 3 Utility . | . . . . Weapon 2 | . . . 2 Highest Loss Streak 4 | . . 1 4 To Critical Strikes . | . . . . Average Slot Usage (%) 94 | . 83 99 92 Engine 4 | . 14 1 . Core 8 | . . 12 10 Leg 4 | . 16 . . Flight 23 | . 11 28 26 Device 24 | . 12 28 27 Ballistic Gun 27 | . 28 28 22 Peak Build Rating 16 | 5 9 12 16 Average Rating 9 | 3 5 11 12 On Entrance 6 | . 5 7 12 Naked Turns . | . . . . Heaviest Build 10 | 7 8 9 10 Greatest Support 20 | 20 20 8 8 Greatest Overweight (x) 1 | . . 1 1 Average Overweight (x) . | . . . . Largest Inventory Capacity 5 | 5 5 5 5 Average Capacity 5 | 5 5 5 5 Most Carried 5 | 5 5 5 5 Average Carried 4 | 2 3 5 4 Final Capacity 5 | 5 5 5 5 Final Carried 5 | 2 5 5 4 Class Distribution -------------------- 62% | Scavenger-Mutant 37% | Mutant Dominant Class ---------------- Mutant | -10/Materials Scavenger-Mutant | -10/Mines Scavenger-Mutant | -10/Subcaves Resources | -11 -10 -10 -10 ----------- Run | Yrd Mat Min Sub Matter Collected 507 | 250 100 135 22 Remotely . | . . . . Salvage Created 530 | . 207 102 221 Parts 38 | . 20 8 10 Haulers Intercepted . | . . . . Recyclers Shooed 1 | . 1 . . Parts Field Recycled . | . . . . Retrieved Matter . | . . . . Parts Self-Destructed 5 | . . . 5 Prevented . | . . . . Kills | -11 -10 -10 -10 ------- Run | Yrd Mat Min Sub Combat Hostiles Destroyed 13 | . 5 4 4 Guns 13 | . 5 4 4 Classes Destroyed 4 | . 3 . 1 Watcher 3 | . 3 . . Swarmer 6 | . 3 3 . Grunt 4 | . 2 1 1 Subdweller 3 | . . . 3 Best Kill Streak 4 | . 4 3 3 Combat Bots Only 3 | . 2 3 3 Max Kills in Single Turn 1 | . 1 1 1 Gunslinging . | . . . . Exploded . | . . . . Melee . | . . . . Uniques/NPCs Destroyed . | . . . . Combat | -11 -10 -10 -10 -------- Run | Yrd Mat Min Sub Hostile Shots Fired 99 | . 22 26 51 Missed 36 | . 8 10 18 Damage Taken 831 | . 127 161 543 Core 269 | . 8 59 202 Absorbed by Shields . | . . . . Ignored by Resistances 235 | . 38 48 149 Core Remaining (%) 100 | 100 . . . Volleys Fired 60 | . 25 15 20 Largest 2 | . 2 2 2 Hottest 85 | . 40 40 85 Shots Fired 115 | . 50 30 35 Gun 115 | . 50 30 35 Cannon . | . . . . Launcher . | . . . . Special . | . . . . Kinetic 106 | . 50 30 26 Thermal 9 | . . . 9 Explosive . | . . . . Electromagnetic . | . . . . Robot Hit Streak 12 | . 12 5 9 Robot Miss Streak 4 | . 4 3 1 Penetration Max . | . . . . Secondary Targets 4 | . 2 2 . Max Gunslinging Chain 1 | . 1 1 . Shots Hit Robots 81 | . 34 19 28 Core Hits 33 | . 16 8 9 Critical Kills . | . . . . Critical Parts Destroyed 3 | . . 2 1 Critical Strikes 4 | . . 2 2 Destroy 4 | . . 2 2 Melee Attacks . | . . . . Impact . | . . . . Slashing . | . . . . Piercing . | . . . . Sneak Attacks . | . . . . Combat Hostiles . | . . . . Follow-up Attacks . | . . . . Damage Inflicted 842 | . 281 174 387 Guns 838 | . 281 174 383 Cannons . | . . . . Explosions . | . . . . Melee . | . . . . Ramming 4 | . . . 4 Kinetic 672 | . 281 174 217 Thermal 166 | . . . 166 Explosive . | . . . . Electromagnetic . | . . . . Impact . | . . . . Slashing . | . . . . Piercing . | . . . . Highest Corruption . | . . . . Average Corruption . | . . . . Corruption Purged . | . . . . Corruption Blocked . | . . . . Overload Shots . | . . . . Overflow Damage . | . . . . Projectiles . | . . . . Explosions . | . . . . Melee . | . . . . Knockbacks . | . . . . Impact . | . . . . Kinetic . | . . . . Secondary . | . . . . Self-Inflicted Damage 2 | . . . 2 Shots . | . . . . Rammed 1 | . . . 1 Targets Rammed 1 | . . . 1 Kicked . | . . . . Crushed . | . . . . Highest Temperature 32 | . 32 19 6 Average Temperature 10 | . 11 7 2 Received Heat Transfer 465 | . 72 138 255 Siege Activations . | . . . . Robots Corrupted . | . . . . Combat Hostiles . | . . . . Parts Fried . | . . . . Impact Corruptions . | . . . . Robots Melted . | . . . . Combat Hostiles . | . . . . Parts Melted . | . . . . Heat Transferred 200 | . . . 200 Parts Sabotaged . | . . . . Parts Stolen . | . . . . Parts Stripped . | . . . . Power Chain Reactions . | . . . . Alert | -11 -10 -10 -10 ------- Run | Yrd Mat Min Sub Peak Influence 205 | . 205 193 . Initial 67 | . . 67 . Average 79 | . 88 81 . Maximum Alert Level 1 | . 1 . . Low Security (%) 95 | 100 83 100 . Level 1 4 | . 16 . . Level 2 . | . . . . Level 3 . | . . . . Level 4 . | . . . . Level 5 . | . . . . High Security . | . . . . Max Security . | . . . . Squads Dispatched 1 | . . 1 . Investigation 1 | . . 1 . Extermination . | . . . . Reinforcement . | . . . . Assault . | . . . . Garrison . | . . . . Intercept . | . . . . Searches Triggered . | . . . . Construction Impeded . | . . . . Haulers Reinforced . | . . . . Active Scanning Responses . | . . . . Cargo Convoy Interrupts . | . . . . Stealth | -11 -10 -10 -10 --------- Run | Yrd Mat Min Sub Distress Signals 2 | . 2 . . Communications Jammed . | . . . . Distress Signals . | . . . . Times Spotted 22 | . 10 5 7 Peak Tracking Total 5 | . 3 2 5 Tactical Retreats 2 | . 1 1 . Traps | -11 -10 -10 -10 ------- Run | Yrd Mat Min Sub Traps Triggered . | . . . . Indirectly . | . . . . Trap Hack Attempts . | . . . . Triggered . | . . . . Disarmed . | . . . . Reprogrammed . | . . . . Reused . | . . . . Traps Extracted . | . . . . Installed . | . . . . Triggered . | . . . . Machines | -11 -10 -10 -10 ---------- Run | Yrd Mat Min Sub Machines Disabled . | . . . . Max in Single Turn . | . . . . Machines Repaired . | . . . . Machines Dismantled . | . . . . Machines Sabotaged . | . . . . Overloaded Fab Kills . | . . . . Hacking | -11 -10 -10 -10 --------- Run | Yrd Mat Min Sub Machines Accessed 5 | . 2 1 2 Terminals 2 | . 2 . . Fabricators . | . . . . Repair Stations . | . . . . Recycling Units . | . . . . Scanalyzers . | . . . . Garrison Access . | . . . . Total Hacks 8 | . 4 1 3 Successful 6 | . 2 1 3 Failed 2 | . 2 . . Catastrophic . | . . . . Database Lockouts . | . . . . Manual . | . . . . Terminals 4 | . 4 . . Fabricators . | . . . . Repair Stations . | . . . . Recycling Units . | . . . . Scanalyzers . | . . . . Garrison Access . | . . . . Terminal Hacks 6 | . 2 1 3 Record 1 | . . . 1 Open Door 2 | . . 1 1 Zone Layout 2 | . 2 . . Release Object 1 | . . . 1 Fabricator Hacks . | . . . . Repair Station Hacks . | . . . . Recycling Unit Hacks . | . . . . Scanalyzer . | . . . . Garrison Access Hacks . | . . . . Unauthorized Hacks . | . . . . Terminals . | . . . . Fabricators . | . . . . Repair Stations . | . . . . Recycling Units . | . . . . Scanalyzers . | . . . . Garrison Access . | . . . . Data Cores Recovered . | . . . . Used . | . . . . Hacking Detections 1 | . 1 . . Full Trace Events . | . . . . Feedback Events . | . . . . Feedback Blocked . | . . . . Robot Schematics Acquired . | . . . . Robots Built . | . . . . Authchips . | . . . . Time . | . . . . Total Robot Build Rating . | . . . . Part Schematics Acquired . | . . . . Parts Built . | . . . . Authchips . | . . . . Time . | . . . . Total Part Build Rating . | . . . . Parts Repaired . | . . . . Time . | . . . . Parts Recycled . | . . . . Recycled Matter . | . . . . Retrieved Matter . | . . . . Retrieved Components . | . . . . Parts Scanalyzed . | . . . . Part Schematics Acquired . | . . . . Parts Damaged . | . . . . Bothacking | -11 -10 -10 -10 ------------ Run | Yrd Mat Min Sub Used RIF Installer . | . . . . Robots Hacked . | . . . . Non-combat . | . . . . Combat . | . . . . Robot Hacks Applied . | . . . . Relay Couplers Released . | . . . . Fabnet Peak Effective % . | . . . . Robots Rewired . | . . . . Allies Hacked . | . . . . Hacks Repelled . | . . . . Allies | -11 -10 -10 -10 -------- Run | Yrd Mat Min Sub Total Allies 2 | . . 2 . Largest Group 2 | . . 2 2 Highest-Rated Group 49 | . . 49 49 Highest-Rated Ally 31 | . . 31 31 Total Orders . | . . . . Ally Attacks 12 | . . 1 11 Total Damage 211 | . . 21 190 Kills 3 | . . 1 2 Allies Corrupted . | . . . . Allies Melted . | . . . . Intel | -11 -10 -10 -10 ------- Run | Yrd Mat Min Sub Robot Analysis Total . | . . . . Derelict Logs Recovered 3 | . . 2 1 Drone Launches . | . . . . Drone Recoveries . | . . . . Exploration | -11 -10 -10 -10 ------------- Run | Yrd Mat Min Sub Turns Passed 1452 | 64 350 820 218 Spaces Moved 1130 | 42 360 558 170 Core 17 | 15 . . 2 Treads . | . . . . Legs 180 | 27 153 . . Wheels . | . . . . Hover . | . . . . Flight 933 | . 207 558 168 Fastest Speed 37 | 50 37 37 37 Average Speed 87 | 95 72 97 85 Slowest Speed 120 | 120 120 117 117 Overloaded Moves . | . . . . Propulsion Burnouts . | . . . . Robots Hopped 1 | . . . 1 Cave-ins Triggered . | . . . . Exploration Rate (%) 41 | 3 56 90 16 Regions Visited 3 Branch Regions 2 Pre-discovered Areas 2 | . . 1 1 Known Exits Taken . | . . . . Unknown Exits Taken 3 | 1 1 1 . Scrap Searched 1 | . . 1 . Spaces Dug . | . . . . Terrain Destroyed . | . . . . Melee . | . . . . Projectile . | . . . . AOE . | . . . . Terrain Rammed . | . . . . Walls Destroyed . | . . . . Machines Disabled . | . . . . Actions | -11 -10 -10 -10 --------- Run | Yrd Mat Min Sub Total 1498 | 66 409 813 210 Wait 245 | 13 . 224 8 Move 1125 | 41 359 557 168 Hop 1 | . . . 1 Pick Up 21 | 7 9 3 2 Fast Attach 3 | . 1 1 1 Attach 9 | 5 1 . 3 Detach . | . . . . Swap 15 | . 7 6 2 Drop 17 | . 7 7 3 Fire 60 | . 25 15 20 Melee . | . . . . Ram 1 | . . . 1 Kick . | . . . . Crush . | . . . . Escape Stasis . | . . . . Rewire . | . . . . Trap . | . . . . Miscellaneous 1 | . . . 1 Route ------- -11/Scrapyard -10/Materials (discovered 2 exits: [*Mat] / *Min) -10/Mines (discovered 3 exits: [*Mat x2] / *Sub) -10/Subcaves History --------- Turn | Location | Event 11 | -11/Scrapyard | Discovered new exit (range 15) 65 | -11/Scrapyard | Entered Materials 140 | -10/Materials | Discovered new exit (range 14) 188 | -10/Materials | Discovered new exit (range 7) 315 | -10/Materials | Build established: Mutant 415 | -10/Materials | Entered Mines 509 | -10/Mines | Met a Derelict shopkeep closing up shop 649 | -10/Mines | Discovered new exit (range 15) 653 | -10/Mines | Discovered new exit (range 12) 660 | -10/Mines | Received a Rocket Launcher from a helpful Derelict 718 | -10/Mines | Learned Materials emergency access door positions 772 | -10/Mines | Build established: Scavenger-Mutant 833 | -10/Mines | Learned location of Storage (-9) 1025 | -10/Mines | Discovered new exit (range 10) 1235 | -10/Mines | Entered Subcaves 1235 | -10/Subcaves | Accompanied by 2 allies 1240 | -10/Subcaves | Led the pair of lost Derelicts to an unsafe place 1303 | -10/Subcaves | Shifting Twisted Machinery released Battle Rifle 1314 | -10/Subcaves | Shifting Twisted Machinery released Sub. Machine Gun 1361 | -10/Subcaves | Learned location of Mines (-8) 1365 | -10/Subcaves | A Subdweller sparked back to life 1365 | -10/Subcaves | A Subdweller sparked back to life 1365 | -10/Subcaves | A Subdweller sparked back to life 1378 | -10/Subcaves | Core integrity fell below 50% 1408 | -10/Subcaves | Released subatomizers from SUBCON Basin 1445 | -10/Subcaves | Found Prototype Device 1446 | -10/Subcaves | Identified Power Bank 1447 | -10/Subcaves | Core integrity fell below 20% 1447 | -10/Subcaves | Attached Power Bank, gained temporary slots: Power x3 1453 | -10/Subcaves | Destroyed by 3K-GIW(R) with Subdweller Beam Cannon Last Messages --------------- Released subatomizers from SUBCON Basin. 84-21S(R) destroyed. Machine disabled. J6-LZ2(R) destroyed. 6Y-8MP(R) affixes Scrap Shield Fragment to Scrap Shield. Machine disabled. Flight Unit destroyed. 6Y-8MP(R) destroyed. Battle Rifle destroyed. Sub. Laser destroyed. Acquired Prototype Device. Identified Power Bank. Core temporarily expanded with Power slot. 3K-GIW(R) affixes Scrap Shield Fragment to Scrap Shield. Acquired Sub. Monowheel. Slammed into 1D-IE3(R). Destabilizing: System interference. Structural Scanner temporarily disabled. Map ----- +----------------------------------------------------+ | ### ?????????????????????????????????????? | | ### ???????????????????????????????????????? | | ## ###??????????????????????????????????????? | | ### ###??????????????????????????????????????? | | ## ###?????????????????????????????????????? | | ## ####????????????????????????????????????? | | %% ## ###????????????????????????????????????? | | %##????????????????????????????????????? | | ##????????????????????????????????????? | | ##%## ##????????????????????????????????????? | | ##### ###????????????????????????????????????? | | ##### ##????????????????????????????????????? | | #?## #########??????????????????????????????? | | #### ########??????????????????????????????? | | "" ### =#### ##??????????????????????????????? | | #####"!%!## ##??????????????????????????????? | | ####### =%[* #############???????????????????? | | ##########! ""###########???????????????????? | | ???##### # " ##""""""##???????????????????? | | ???## # " #"X""""##???????????????????? | | ??# ## "# # #" & ##???????????????????? | | ??## #### % % #" ##???????????????????? | | "" " ## ### ""#"""" ##???????????????????? | | "#"#" #??## # ########### ###???????????????????? | | ####"????#### #########! "##???????????????????? | | ?????????### ###?####&@ X###??????????????????? | | ??????????## "#######RR ####??????????????????? | | ??????????### #####=%#### ####??######????????? | | ??????????### #### ## ############????????? | | ???????????## # ## ### ###### ##?###????? | | ???????????###### # ### #######???? | | ??????? ## ## ## ## ???? | | ?????? % "" ""???? | | ?????? # "" ?? | | ??????### % # ###### # | | ??????### ## ######## ?? # | | ???????### ### ####??????? # | | ???????###### ###### ##??????????? | | ????????##### ######## ###??????????? | | ???????????## ####??################??????????? | | ???????????##" ##?????##############???????????? | | ???????????##" ##???????????????????????????????? | | ???????????##" ##???????????????????????????????? | | ???????????# "" ?????????????????????????????????? | | ??????????????""?????????????????????????????????? | | ?????????????????????????????????????????????????? | | ?????????????????????????????????????????????????? | | ?????????????????????????????????????????????????? | | ?????????????????????????????????????????????????? | | ?????????????????????????????????????????????????? | +----------------------------------------------------+ Best States ------------- Heat Dissipation 39 Energy Generation 14 Energy Capacity 250 Matter Stores 300 Matter Capacity 300 Sight Range 16 Terrain Scan Density 10 Resistance: KI 20 Resistance: TH 20 Resistance: EX 20 Resistance: EM 20 Resistance: I 20 Resistance: S 20 Resistance: P 20 Evasion (%) 62 Offensive Hacking 10 Item Schematics ----------------- None Robot Schematics ------------------ None Fabricated ------------ Nothing Alien Tech Used ----------------- None Achievements -------------- None Challenges ------------ None Game ------ Seed DimensionalMassFalx Manual? 0 Play Time 00:12:43 Cumulative 66.8 hours Start 2024.09.16 @ 16:32:57 End 2024.09.16 @ 16:42:53 Sessions 1 Manual Loads 0 Difficulty Adventurer Special Mode None Game No. 82 Rogue 13 Adventurer 69 Explorer 0 Win Type - Total 0 Types 0/0/0/0/0/0/0/0/0 Lore% 48 Gallery% 54 Achievement% 43 Wizard Run 0 Options --------- Layout 1 ASCII 0 Keyboard 0 Movement Mouse Keybinds 0 Fullscreen 1 Font 24/Smallcaps Map View 50x35 Zoom Use 0% Tactical HUD 0 Map Filters NONE Filters NONE Steam 1 RUN: 074cdbed-c55d-4ce2-897c-7a4457077210